bitfinex-derivatives/quotes_SOLF0:USTF0_20250516
["timestamp","ask_amount","ask_price","bid_price","bid_amount"]
[1747392310439,5.7867,172.76,172.68,6.78029907]
[1747392310739,5.7869,172.75,172.72,5.7876]
[1747392311343,5.7866,172.76,172.72,5.7876]
[1747392312343,5.7868,172.75,172.72,5.7876]
[1747392314639,5.7866,172.76,172.73,5.7874]
[1747392315047,1.9009,172.84,172.71,127.80029907]
[1747392315240,121.02,172.83,172.76,5.7864]
[1747392315637,5.7856,172.79,172.76,5.7864]
[1747392316944,127.78029907,172.83,172.72,3.7683]
[1747392317250,6.78029907,172.8,172.71,121.02]
[1747392317440,120.98,172.79,172.71,60.52]
[1747392317733,120.98,172.79,172.68,60.5]
[1747392317938,5.7874,172.74,172.71,5.7879]
[1747392318135,120.98,172.79,172.68,60.5]
[1747392318439,6.78029907,172.8,172.68,67.28029907]
[1747392318634,60.48,172.79,172.68,67.28029907]
[1747392319644,5.7866,172.76,172.68,67.28029907]
[1747392321746,5.7862,172.77,172.74,5.7871]
[1747392321949,60.48,172.79,172.68,67.28029907]
[1747392322143,60.5,172.8,172.69,120.96]
[1747392322343,5.7857,172.79,172.76,5.7864]
[1747392323951,5.7853,172.8,172.73,60.5]
[1747392324253,1.9783,172.82,172.73,120.96]
[1747392324646,5.7852,172.8,172.77,5.7859]
[1747392325442,62.4009,172.84,172.73,120.96]
[1747392325649,60.44,172.86,172.74,67.28029907]
[1747392326052,60.44,172.86,172.8,5.7851]
[1747392326447,60.44,172.86,172.78,60.5]
[1747392326648,5.7847,172.82,172.79,5.7852]
[1747392327152,5.7842,172.83,172.8,5.7851]
[1747392327551,62.4286,172.87,172.78,60.5]
[1747392327754,122.8686,172.87,172.78,60.5]
[1747392327960,5.7838,172.84,172.81,5.7846]
[1747392328453,5.7836,172.85,172.82,5.7844]
[1747392328652,122.8686,172.87,172.78,60.5]
[1747392329054,5.784,172.84,172.81,5.7845]
[1747392329658,5.784,172.84,172.82,5.7844]
[1747392330660,5.7837,172.85,172.82,5.7844]
[1747392330856,1.9286,172.87,172.82,5.7844]
[1747392331257,5.7838,172.84,172.81,5.7847]
[1747392331760,5.7838,172.84,172.78,60.5]
[1747392332258,5.7841,172.83,172.8,5.7849]
[1747392332458,5.7841,172.83,172.78,60.5]
[1747392334153,1.9286,172.87,172.78,60.5]
[1747392334567,1.9286,172.87,172.79,5.7852]
[1747392334768,5.7846,172.82,172.79,5.7852]
[1747392335366,5.7849,172.81,172.79,5.7852]
[1747392335569,5.7849,172.81,172.78,66.2857]
[1747392336167,5.7849,172.81,172.79,5.7854]
[1747392336558,60.48,172.86,172.78,60.5]
[1747392336865,6.78029907,172.8,172.66,8.66029907]
[1747392337067,5.7873,172.74,172.67,122.6204]
[1747392337264,60.38,172.77,172.67,62.2204]
[1747392337972,5.7879,172.72,172.69,5.7886]
[1747392338469,5.7875,172.73,172.7,5.7883]
[1747392338767,60.38,172.77,172.67,62.2204]
[1747392339170,5.7869,172.75,172.67,62.2204]
[1747392340268,60.38,172.78,172.67,62.2204]
[1747392341373,5.7877,172.73,172.7,5.7883]
[1747392342067,5.7873,172.74,172.71,5.7881]
[1747392342669,5.787,172.75,172.67,122.6004]
[1747392343873,5.787,172.75,172.71,5.7879]
[1747392344073,5.787,172.75,172.67,122.6004]
[1747392344673,60.38,172.78,172.67,122.6004]
[1747392344674,5.7866,172.76,172.67,122.6004]
[1747392344974,60.38,172.78,172.71,5.7879]
[1747392345273,60.38,172.78,172.67,122.6004]
[1747392345461,6.78029907,172.77,172.67,62.2204]
[1747392346269,6.78029907,172.77,172.67,60.38]
[1747392346473,6.78029907,172.74,172.64,60.4]
[1747392346667,122.7752,172.73,172.64,60.4]
[1747392346867,6.78029907,172.71,172.64,60.4]
[1747392347068,6.78029907,172.71,172.61,60.4]
[1747392347362,5.7897,172.67,172.64,5.7902]
[1747392347874,5.7892,172.68,172.65,5.7901]
[1747392348269,60.38,172.69,172.61,60.4]
[1747392348778,62.3245,172.72,172.61,60.4]
[1747392348969,5.7885,172.7,172.61,60.4]
[1747392349280,62.3245,172.72,172.61,60.4]
[1747392349474,5.7892,172.68,172.65,5.7899]
[1747392349777,62.3245,172.72,172.65,5.7899]
[1747392350076,5.7889,172.69,172.66,5.7896]
[1747392350773,5.7886,172.7,172.67,5.7894]
[1747392351679,5.7883,172.71,172.68,5.7889]
[1747392352374,5.7883,172.71,172.63,60.38]
[1747392352677,5.7883,172.71,172.69,5.7888]
[1747392352876,62.3952,172.73,172.65,60.42]
[1747392353279,60.4,172.73,172.65,60.42]
[1747392353580,5.7876,172.73,172.65,60.42]
[1747392354382,5.7879,172.72,172.69,5.7886]
[1747392355081,60.38,172.74,172.65,60.42]
[1747392356784,5.788,172.72,172.69,5.7887]
[1747392357484,60.38,172.74,172.65,60.42]
[1747392357982,5.7891,172.69,172.66,5.7896]
[1747392358883,5.7885,172.7,172.67,5.7894]
[1747392359881,5.7885,172.7,172.68,5.7891]
[1747392360185,5.7885,172.7,172.65,60.42]
[1747392360384,5.7889,172.69,172.66,5.7897]
[1747392362088,5.7889,172.69,172.67,5.7894]
[1747392362280,5.7889,172.69,172.65,60.42]
[1747392362281,5.7886,172.7,172.65,60.42]
[1747392362477,60.36,172.72,172.65,60.42]
[1747392362887,5.7882,172.71,172.68,5.7889]
[1747392363280,60.36,172.72,172.68,5.7889]
[1747392363480,5.7887,172.7,172.67,5.7893]
[1747392363681,60.36,172.72,172.65,60.42]
[1747392363884,60.36,172.72,172.66,5.7897]
[1747392364689,5.7892,172.68,172.66,5.7897]
[1747392364891,60.36,172.72,172.66,5.7897]
[1747392365189,5.789,172.69,172.66,5.7897]
[1747392365991,5.789,172.69,172.67,5.7895]
[1747392366792,5.7886,172.7,172.67,5.7895]
[1747392366993,60.36,172.72,172.67,5.7895]
[1747392367398,60.36,172.72,172.62,60.34]
[1747392367588,1.8749,172.71,172.62,60.34]
[1747392367892,8.65519907,172.71,172.62,60.34]
[1747392368084,6.78029907,172.68,172.49,11.5905]
[1747392368289,6.78029907,172.65,172.54,60.34]
[1747392368485,5.7922,172.59,172.54,60.34]
[1747392368892,122.5825,172.64,172.54,60.34]
[1747392369092,5.7912,172.62,172.58,5.7923]
[1747392369399,122.5825,172.64,172.58,5.7923]
[1747392369593,5.7912,172.62,172.59,5.7921]
[1747392369900,122.5825,172.64,172.54,67.12029907]
[1747392369901,120.68,172.64,172.54,67.12029907]
[1747392370593,120.68,172.64,172.6,5.7916]
[1747392371098,5.7908,172.63,172.6,5.7916]
[1747392371395,120.68,172.64,172.6,5.7916]
[1747392371896,5.7909,172.63,172.6,5.7916]
[1747392372095,120.68,172.64,172.58,5.7922]
[1747392372792,5.7917,172.61,172.58,5.7922]
[1747392373699,120.68,172.64,172.57,5.7927]
[1747392374197,122.498,172.64,172.54,60.34]
[1747392375294,122.498,172.64,172.56,5.793]
[1747392375495,122.498,172.64,172.54,60.34]
[1747392375903,5.7922,172.59,172.56,5.793]
[1747392376300,60.34,172.6,172.56,5.793]
[1747392376803,5.7925,172.58,172.55,5.7934]
[1747392377296,5.7928,172.57,172.54,66.1338]
[1747392377501,5.7928,172.57,172.54,5.7938]
[1747392378003,5.7935,172.55,172.52,5.7942]
[1747392378198,120.7,172.6,172.51,64.1505]
[1747392378603,120.7,172.6,172.54,5.7936]
[1747392378802,120.7,172.6,172.51,64.1505]
[1747392378998,5.793,172.57,172.54,5.7936]
[1747392380500,5.7932,172.56,172.54,5.7936]
[1747392380707,5.7932,172.56,172.53,5.794]
[1747392380907,120.7,172.6,172.53,5.794]
[1747392381095,5.7935,172.55,172.51,64.1505]
[1747392381298,120.7,172.56,172.48,60.36]
[1747392381504,60.34,172.55,172.48,60.36]
[1747392382003,60.34,172.58,172.49,60.34]
[1747392382201,5.7934,172.56,172.53,5.7941]
[1747392383502,5.793,172.57,172.53,5.7941]
[1747392383802,60.34,172.58,172.52,5.7944]
[1747392384404,5.7938,172.55,172.52,5.7944]
[1747392384706,60.34,172.58,172.49,60.34]
[1747392385100,5.7946,172.52,172.49,60.34]
[1747392385301,5.7946,172.52,172.49,5.7952]
[1747392385702,5.7948,172.51,172.49,5.7952]
[1747392386310,5.7946,172.52,172.49,5.7952]
[1747392386608,60.34,172.58,172.49,5.7952]
[1747392386812,5.7947,172.52,172.49,5.7952]
[1747392387109,60.34,172.58,172.49,5.7952]
[1747392387405,5.7944,172.53,172.5,5.795]
[1747392387612,60.34,172.58,172.48,60.36]
[1747392387906,60.34,172.58,172.51,5.7946]
[1747392388111,5.794,172.54,172.48,60.36]
[1747392388407,60.34,172.58,172.48,60.36]
[1747392388610,5.7936,172.55,172.52,5.7943]
[1747392390011,60.34,172.58,172.48,60.36]
[1747392390617,5.7936,172.55,172.48,60.36]
[1747392391313,5.7933,172.56,172.48,60.36]
[1747392391613,60.34,172.58,172.48,60.36]
[1747392391815,5.7929,172.57,172.48,60.36]
[1747392393010,5.7932,172.56,172.48,60.36]
[1747392393314,120.7,172.6,172.48,60.36]
[1747392393511,5.7932,172.56,172.53,5.794]
[1747392394310,5.7932,172.56,172.54,5.7938]
[1747392394511,5.793,172.57,172.54,5.7938]
[1747392396112,5.793,172.57,172.55,5.7935]
[1747392396412,5.793,172.57,172.51,1.9123]
[1747392396812,5.793,172.57,172.54,5.7937]
[1747392397314,5.7926,172.58,172.55,5.7933]
[1747392397511,5.7926,172.58,172.52,62.1443]
[1747392397709,67.08029907,172.63,172.52,62.1443]
[1747392397920,5.7921,172.6,172.52,62.1443]
[1747392398116,60.3,172.62,172.52,62.1443]
[1747392398515,5.792,172.6,172.57,5.7927]
[1747392399417,5.7916,172.61,172.58,5.7924]
[1747392399614,60.3,172.63,172.54,60.3]
[1747392400021,5.7914,172.62,172.6,5.7917]
[1747392400318,5.7914,172.62,172.56,60.3]
[1747392401223,5.7914,172.62,172.59,5.7921]
[1747392401825,5.7909,172.63,172.6,5.7918]
[1747392403219,60.28,172.65,172.56,67.08029907]
[1747392403421,62.2233,172.69,172.57,1.9798]
[1747392403725,5.788,172.72,172.62,6.78029907]
[1747392403920,120.56,172.74,172.63,122.4024]
[1747392404312,5.7883,172.71,172.67,5.7892]
[1747392404718,120.56,172.74,172.67,5.7892]
[1747392405024,5.7887,172.7,172.66,5.7898]
[1747392405219,5.7887,172.7,172.64,1.9798]
[1747392406225,5.7887,172.7,172.66,5.7895]
[1747392406423,5.7888,172.69,172.66,5.7895]
[1747392407025,5.7886,172.7,172.66,5.7895]
[1747392407325,5.7886,172.7,172.67,5.7894]
[1747392407520,5.7883,172.71,172.67,5.7894]
[1747392407925,120.56,172.74,172.67,5.7894]
[1747392409420,5.7884,172.71,172.67,5.7894]
[1747392409929,120.56,172.74,172.69,5.7887]
[1747392410315,120.56,172.74,172.67,60.26]
[1747392410625,5.7886,172.7,172.67,60.26]
[1747392411227,5.7878,172.72,172.67,60.26]
[1747392411529,62.1169,172.77,172.67,60.26]
[1747392411730,5.787,172.75,172.67,120.5]
[1747392412118,122.3569,172.77,172.67,120.5]
[1747392412321,5.7868,172.75,172.72,5.7876]
[1747392412724,62.0969,172.77,172.67,120.5]
[1747392412924,5.7873,172.74,172.7,5.7882]
[1747392413128,5.7873,172.74,172.67,120.5]
[1747392413323,62.0969,172.77,172.67,120.5]
[1747392413527,62.0969,172.77,172.7,5.7882]
[1747392413824,62.0969,172.77,172.67,120.5]
[1747392414133,5.7882,172.71,172.67,60.26]
[1747392415030,5.7882,172.71,172.68,5.7889]
[1747392415530,5.7878,172.72,172.67,60.26]
[1747392415732,60.26,172.76,172.67,60.26]
[1747392415922,120.48,172.76,172.67,60.26]
[1747392416333,5.7872,172.74,172.67,60.26]
[1747392416726,1.8569,172.77,172.67,60.26]
[1747392416931,60.2,172.77,172.68,60.2]
[1747392417126,235.97953018,172.78,172.68,66.98029907]
[1747392417336,235.97953018,172.78,172.69,1.8208]
[1747392417637,5.7838,172.84,172.8,5.785]
[1747392418223,5.7842,172.83,172.79,5.7854]
[1747392420636,5.7839,172.84,172.76,62.0903]
[1747392421136,62.1627,172.86,172.76,62.0903]
[1747392421339,60.2,172.86,172.77,6.78029907]
[1747392421834,65.9831,172.86,172.77,6.78029907]
[1747392422034,5.7831,172.86,172.78,60.18]
[1747392422936,5.7831,172.86,172.82,5.7841]
[1747392423138,5.7835,172.85,172.82,5.7841]
[1747392423329,60.26,172.87,172.8,60.24]
[1747392423534,60.18,172.9,172.8,67.02029907]
[1747392423833,5.7818,172.9,172.8,67.02029907]
[1747392424032,120.42,172.92,172.8,67.02029907]
[1747392424535,60.18,172.92,172.8,67.02029907]
[1747392425237,65.9611,172.92,172.8,71.07714345]
[1747392425540,60.18,172.92,172.8,71.07714345]
[1747392425837,60.16,172.93,172.8,71.07714345]
[1747392426336,5.7823,172.89,172.84,5.7835]
[1747392426544,60.16,172.93,172.8,60.24]
[1747392427840,10.83714345,172.91,172.8,60.24]
[1747392428033,62.0008,172.9,172.8,60.24]
[1747392428228,5.7836,172.85,172.81,5.7845]
[1747392428543,60.14,172.89,172.8,60.24]
[1747392428737,5.783,172.87,172.83,5.7841]
[1747392429645,65.9226,172.88,172.84,5.7837]
[1747392430545,60.14,172.88,172.84,5.7837]
[1747392430842,60.14,172.88,172.8,60.24]
[1747392431143,60.14,172.88,172.77,120.28]
[1747392431339,1.9248,172.87,172.77,60.14]
[1747392431540,60.14,172.86,172.77,60.14]
[1747392431743,5.7851,172.81,172.77,60.14]
[1747392432043,60.14,172.83,172.75,1.8987]
[1747392432341,60.14,172.83,172.74,187.02504825]
[1747392432542,60.14,172.83,172.74,60.14]
[1747392433042,5.7853,172.8,172.74,60.14]
[1747392433242,60.14,172.83,172.74,60.14]
[1747392434543,60.14,172.83,172.79,5.7854]
[1747392434741,60.14,172.83,172.74,60.14]
[1747392435147,60.14,172.83,172.75,5.7865]
[1747392435444,60.14,172.82,172.74,60.14]
[1747392435745,60.14,172.82,172.78,5.7856]
[1747392436649,5.7849,172.81,172.78,5.7856]
[1747392436946,60.14,172.82,172.79,5.7852]
[1747392437141,60.14,172.83,172.74,60.14]
[1747392437341,60.14,172.86,172.75,10.83714345]
[1747392437543,62.0648,172.87,172.76,60.24]
[1747392438041,62.0648,172.87,172.8,5.7849]
[1747392438243,5.7848,172.81,172.76,60.14]
[1747392438442,62.0648,172.87,172.76,60.14]
[1747392438640,62.0648,172.87,172.78,5.7856]
[1747392438842,62.0648,172.87,172.76,60.14]
[1747392439247,62.0648,172.87,172.8,5.785]
[1747392439448,5.7838,172.84,172.76,60.14]
[1747392440248,5.7842,172.83,172.8,5.7849]
[1747392440743,5.7841,172.83,172.79,5.7852]
[1747392441046,5.7841,172.83,172.76,60.14]
[1747392441239,120.38,172.86,172.76,60.14]
[1747392441440,5.7847,172.82,172.78,5.7856]
[1747392441638,5.7847,172.82,172.76,60.14]
[1747392442149,120.38,172.86,172.76,60.14]
[1747392442847,5.784,172.84,172.81,5.7848]
[1747392443246,60.14,172.86,172.83,5.7841]
[1747392443451,120.34,172.86,172.76,60.14]
[1747392443848,126.1233,172.86,172.82,5.7842]
[1747392444149,65.9833,172.86,172.78,60.18]
[1747392444754,65.9833,172.86,172.82,5.7841]
[1747392445054,5.7833,172.86,172.82,5.7841]
[1747392445249,5.7835,172.85,172.82,5.7841]
[1747392445546,62.0648,172.87,172.81,5.7847]
[1747392445747,5.784,172.84,172.81,5.7847]
[1747392448456,5.7836,172.85,172.78,60.18]
[1747392448653,62.0648,172.87,172.78,60.18]
[1747392449456,5.7839,172.84,172.82,5.7844]
[1747392449757,62.0648,172.87,172.8,60.14]
[1747392450255,62.0648,172.87,172.77,60.14]
[1747392450553,5.7842,172.83,172.8,5.7851]
[1747392450764,60.14,172.85,172.77,60.14]
[1747392450956,62.0648,172.87,172.77,60.14]
[1747392451159,5.7837,172.85,172.81,5.7846]
[1747392451564,62.0648,172.87,172.77,66.91814223]
[1747392452064,5.7838,172.84,172.81,5.7846]
[1747392452771,62.0648,172.87,172.8,5.785]
[1747392453268,5.7842,172.83,172.8,5.785]
[1747392453466,62.0648,172.87,172.77,60.14]
[1747392453765,5.785,172.81,172.77,60.14]
[1747392453968,5.785,172.81,172.78,5.7855]
[1747392455267,60.18,172.83,172.77,60.14]
[1747392455564,60.18,172.83,172.74,60.14]
[1747392456160,5.785,172.81,172.74,60.14]
[1747392456362,60.18,172.83,172.74,60.14]
[1747392456666,5.7845,172.82,172.78,5.7855]
[1747392456963,5.7845,172.82,172.74,60.14]
[1747392456964,1.9248,172.87,172.74,60.14]
[1747392457172,65.924,172.84,172.81,5.7847]
[1747392457465,60.14,172.84,172.74,60.14]
[1747392457665,5.7846,172.82,172.79,5.7854]
[1747392458271,5.7846,172.82,172.8,5.7851]
[1747392458662,5.7846,172.82,172.74,60.14]
[1747392458865,60.14,172.84,172.78,5.7856]
[1747392459068,60.14,172.84,172.74,60.14]
[1747392459768,1.9847,172.83,172.74,60.14]
[1747392460370,5.7853,172.8,172.77,5.7858]
[1747392460971,5.7855,172.79,172.77,5.7858]
[1747392461269,1.9847,172.83,172.78,5.7858]
[1747392461470,1.9847,172.83,172.74,60.14]
[1747392461770,5.7853,172.8,172.74,60.14]
[1747392461971,1.9847,172.83,172.78,5.7858]
[1747392462168,1.9847,172.83,172.74,60.14]
[1747392462370,6.77814223,172.88,172.74,60.14]
[1747392462569,120.44,172.86,172.74,60.14]
[1747392462771,5.7835,172.85,172.74,60.14]
[1747392462971,5.7835,172.85,172.82,5.7842]
[1747392463270,120.44,172.86,172.82,5.7842]
[1747392463470,120.44,172.86,172.84,5.7838]
[1747392463868,120.44,172.86,172.78,60.2]
[1747392464071,5.7835,172.85,172.78,60.2]
[1747392464269,60.2,172.86,172.78,60.2]
[1747392464570,62.2048,172.87,172.78,64.0526]
[1747392464771,5.7832,172.86,172.83,5.7839]
[1747392465071,5.7832,172.86,172.78,64.0526]
[1747392465275,7.7077,172.87,172.84,5.7837]
[1747392466072,5.7831,172.86,172.84,5.7837]
[1747392466672,5.7831,172.86,172.83,5.784]
[1747392466972,5.7831,172.86,172.78,64.0526]
[1747392467172,5.7831,172.86,172.83,5.7839]
[1747392467573,7.7077,172.87,172.78,64.0526]
[1747392467770,62.0845,172.89,172.79,6.77814223]
[1747392467969,62.0845,172.89,172.79,8.60654223]
[1747392468370,5.7826,172.88,172.84,5.7835]
[1747392469176,5.7826,172.88,172.85,5.7834]
[1747392469575,5.7828,172.87,172.79,8.60654223]
[1747392469875,60.2,172.89,172.79,8.60654223]
[1747392470064,121.14,172.89,172.79,8.60654223]
[1747392470269,5.7831,172.86,172.79,8.60654223]
[1747392470465,121.14,172.89,172.82,5.7842]
[1747392471074,121.14,172.89,172.79,8.60654223]
[1747392471475,5.7825,172.88,172.79,8.60654223]
[1747392472377,5.7825,172.88,172.85,5.7834]
[1747392473175,5.7829,172.87,172.84,5.7837]
[1747392473671,5.7832,172.86,172.79,1.8284]
[1747392473875,121.06,172.89,172.79,62.6884]
[1747392474478,5.7831,172.86,172.83,5.7839]
[1747392474775,121.06,172.89,172.79,62.6884]
[1747392475474,5.7829,172.87,172.84,5.7836]
[1747392475677,121.06,172.89,172.79,62.6884]
[1747392475877,121.06,172.89,172.79,1.8284]
[1747392476075,121.06,172.89,172.8,60.76]
[1747392476979,235.79018401,172.91,172.8,60.76]
[1747392477178,296.51018401,172.91,172.8,67.53814223]
[1747392477578,235.79018401,172.91,172.8,67.53814223]
[1747392478180,235.79018401,172.91,172.89,5.782]
[1747392479581,241.57168401,172.91,172.88,5.7823]
[1747392479879,235.79018401,172.91,172.86,60.18]
[1747392480082,235.79018401,172.91,172.84,60.7]
[1747392480272,5.7819,172.9,172.87,5.7825]
[1747392480478,235.79018401,172.91,172.84,60.7]
[1747392481280,235.79018401,172.91,172.86,5.7829]
[1747392481484,235.79018401,172.91,172.83,60.18]
[1747392481673,295.97018401,172.91,172.83,60.18]
[1747392481871,295.97018401,172.91,172.83,65.9639]
[1747392482179,295.97018401,172.91,172.83,60.18]
[1747392482378,5.783,172.87,172.84,5.7836]
[1747392482581,5.783,172.87,172.83,60.18]
[1747392483184,5.783,172.87,172.84,5.7837]
[1747392483482,5.7827,172.88,172.83,60.18]
[1747392484085,295.97018401,172.91,172.83,60.18]
[1747392484683,295.97018401,172.91,172.88,5.7824]
[1747392485185,235.79018401,172.91,172.88,5.7824]
[1747392485688,235.79018401,172.91,172.89,5.7818]
[1747392485990,9.5547,172.93,172.89,5.7818]
[1747392486191,9.5547,172.93,172.9,5.7817]
[1747392486483,5.7806,172.94,172.86,60.8]
[1747392486682,60.18,172.95,172.91,5.7812]
[1747392486982,5.7796,172.97,172.88,6.77814223]
[1747392487189,121.02,172.98,172.88,6.77814223]
[1747392487377,121.02,172.98,172.93,5.7807]
[1747392487687,60.18,172.98,172.9,60.88]
[1747392487889,60.18,172.98,172.92,5.781]
[1747392488388,5.7801,172.95,172.9,60.88]
[1747392488590,60.18,172.98,172.9,60.88]
[1747392490192,60.18,172.98,172.9,66.6617]
[1747392490493,60.18,172.98,172.87,122.9151]
[1747392490695,5.7813,172.92,172.89,5.782]
[1747392490994,60.18,172.98,172.87,122.9151]
[1747392491294,5.7805,172.94,172.91,5.7814]
[1747392493188,60.18,172.98,172.88,6.77814223]
[1747392493390,66.5111,173.0,172.87,122.9151]
[1747392493590,5.781,172.93,172.89,5.7819]
[1747392493797,5.781,172.93,172.88,121.68]
[1747392494197,5.781,172.93,172.9,5.7816]
[1747392495493,5.7812,172.92,172.89,5.7819]
[1747392495698,60.86,172.97,172.88,60.86]
[1747392495886,60.74,172.96,172.88,60.86]
[1747392496091,60.74,172.96,172.87,5.7827]
[1747392497800,5.782,172.9,172.87,5.7827]
[1747392498398,5.7822,172.89,172.87,5.7827]
[1747392498803,60.74,172.96,172.85,60.86]
[1747392499190,60.74,172.96,172.87,5.7825]
[1747392499403,5.7818,172.9,172.87,5.7825]
[1747392500099,60.6,172.92,172.85,60.86]
[1747392500294,67.37814223,172.92,172.82,121.48]
[1747392500496,5.7833,172.86,172.83,5.784]
[1747392500696,1.8274,172.91,172.82,121.48]
[1747392501103,5.7827,172.88,172.85,5.7834]
[1747392501403,1.8274,172.91,172.85,5.7834]
[1747392501806,5.783,172.87,172.84,5.7837]
[1747392502201,1.8274,172.91,172.82,60.86]
[1747392502405,1.8274,172.91,172.83,5.784]
[1747392502905,5.7834,172.86,172.83,5.784]
[1747392503307,1.8274,172.91,172.82,60.86]
[1747392504002,1.8274,172.91,172.86,5.7829]
[1747392504304,1.8274,172.91,172.82,60.86]
[1747392504503,1.8274,172.91,172.85,5.7831]
[1747392505010,5.7823,172.89,172.82,60.86]
[1747392505209,5.7823,172.89,172.86,5.783]
[1747392505705,5.7818,172.9,172.88,5.7824]
[1747392506206,5.7821,172.89,172.87,5.7827]
[1747392507119,5.7819,172.9,172.87,5.7827]
[1747392507623,5.7822,172.89,172.86,5.783]
[1747392507918,1.8289,172.92,172.82,60.86]
[1747392508417,1.8289,172.92,172.87,5.7827]
[1747392508820,1.8289,172.92,172.82,60.86]
[1747392511123,8.60704223,172.92,172.8,60.86]
[1747392511316,8.60704223,172.92,172.8,121.28]
[1747392511618,1.8289,172.92,172.8,128.03814223]
[1747392512121,5.7826,172.88,172.86,5.7831]
[1747392512321,5.7826,172.88,172.8,128.03814223]
[1747392512623,5.7826,172.88,172.85,5.7832]
[1747392513018,1.8289,172.92,172.8,128.03814223]
[1747392513525,5.7833,172.86,172.81,60.86]
[1747392513826,60.38,172.9,172.84,5.7837]
[1747392514018,60.38,172.9,172.81,60.86]
[1747392514322,60.38,172.9,172.82,5.7843]
[1747392514522,5.7833,172.86,172.81,60.86]
[1747392515027,5.7836,172.85,172.81,60.86]
[1747392516820,5.7836,172.85,172.82,5.7842]
[1747392517422,5.7836,172.85,172.83,5.784]
[1747392517620,5.7832,172.86,172.83,5.784]
[1747392518225,60.86,172.89,172.81,60.86]
[1747392519119,5.7828,172.87,172.84,5.7836]
[1747392519522,5.7828,172.87,172.81,60.86]
[1747392519722,5.7826,172.88,172.85,5.7834]
[1747392520122,60.26,172.91,172.83,5.784]
[1747392521227,60.26,172.91,172.84,5.7837]
[1747392521421,5.7833,172.86,172.81,60.86]
[1747392521621,5.7833,172.86,172.81,121.06]
[1747392522631,5.7829,172.87,172.84,5.7836]
[1747392522833,60.26,172.91,172.84,5.7836]
[1747392523531,60.26,172.91,172.83,5.7839]
[1747392524432,5.7833,172.86,172.83,5.7839]
[1747392524835,60.26,172.91,172.83,5.7839]
[1747392525025,5.7833,172.86,172.83,5.7839]
[1747392525737,5.7835,172.85,172.83,5.7839]
[1747392525935,60.26,172.91,172.81,60.86]
[1747392526330,11.5649,172.88,172.77,62.1317]
[1747392526537,124.1183,172.87,172.77,60.26]
[1747392526926,5.7842,172.83,172.8,5.7851]
[1747392528248,120.42,172.87,172.77,67.03814223]
[1747392528536,120.42,172.87,172.78,3.6718]
[1747392528733,60.16,172.87,172.78,3.6718]
[1747392529036,60.26,172.9,172.78,3.6718]
[1747392529231,120.42,172.9,172.78,3.6718]
[1747392529428,10.50004223,172.92,172.8,6.77814223]
[1747392529636,120.42,172.91,172.81,122.3042]
[1747392529842,60.26,172.91,172.81,122.3042]
[1747392530536,5.7823,172.89,172.81,122.3042]